[Event "Polish University-ch Teams 2024"]
[Site "Lublin"]
[Date "2024.02.25"]
[Round "9.14"]
[White "Niedbala, Bartlomiej"]
[Black "Fiedorek, Michal"]
[Result "1-0"]
[ECO "A07"]
[WhiteElo "2382"]
[BlackElo "2286"]
[Annotator "TA"]
[PlyCount "112"]
[EventDate "2024.02.22"]
[EventType "team-tourn"]
[EventCountry "POL"]
[SourceTitle "playchess.com"]
[Source "ChessBase"]
[SourceQuality "1"]
[TimeControl "900+5"]

{[%evp 29,110,-18,9,-31,-16,-19,-2,-11,0,-16,0,-46,38,-38,-39,-49,-41,-56,-48,-40,-51,-36,-39,-124,-59,-133,-127,-178,-140,-165,-146,-145,-118,-181,-142,-133,0,-166,0,-177,-141,-168,-141,-146,-128,-141,0,-173,-160,-199,-198,-182,-154,-131,-90,-108,-99,-103,-117,-71,0,0,0,0,1237,187,231,0,0,0,0,0,269,179,185,0,0,0,0,0,0,0,29979]} 1. Nf3 {[%emt 0:00:08]} Nf6 {[%emt 0:00:15]} 2. g3 {[%emt 0:00:02]} d5 {[%emt 0:00:05]} 3. Bg2 {[%emt 0:00:02]} e6 {[%emt 0:00:04]} 4. O-O {[%emt 0:00:05]} Be7 {[%emt 0:00:01]} 5. d3 {[%emt 0:00:02]} O-O {[%emt 0:00:09]} 6. Bf4 {[%emt 0:00:07] A07: Barcza-System (Königsfianchetto mit möglichen Übergängen in andere Systeme).} c5 {[%emt 0:00:19]} 7. a4 {[%emt 0:00:35]} Nc6 {[%emt 0:00:10]} 8. Qe1 $146 {[%emt 0:01:12]} ({Predecessor:} 8. e4 Nh5 9. Bd2 Nf6 10. e5 Ng4 11. Qe2 f6 12. exf6 Bxf6 13. c3 Kh8 14. Na3 {½-½ Theodorou,N (2619)-Navara,D (2689) FIDE Grand Swiss 2023 (7)}) 8... Bd6 {[%emt 0:01:02]} 9. Bd2 {[%emt 0:00:09]} Nd4 {[%emt 0:01:21]} 10. Na3 {[%emt 0:01:11]} Bd7 {[%emt 0:00:21]} 11. b3 {[%emt 0:01:24]} Rc8 {[%emt 0:00:22]} 12. e3 {[%emt 0:00:44]} Nxf3+ {[%emt 0:00:26]} 13. Bxf3 {[%emt 0:00:02]} Bc6 {[%emt 0:00:17]} 14. e4 {[%emt 0:00:23]} Be5 {[%emt 0:01:52]} 15. Rd1 {[%emt 0:00:23]} Qe7 {[%emt 0:01:47]} 16. Nb1 {[%emt 0:00:54]} dxe4 {[%emt 0:00:35]} 17. dxe4 {[%emt 0:00:05]} Rfd8 {[%emt 0:00:02]} 18. Na3 {[%emt 0:00:12]} Rd4 {[%emt 0:00:45]} 19. Nc4 {[%emt 0:00:27]} Bb8 {[%emt 0:00:34]} 20. c3 {[%emt 0:00:44]} (20. Bg5 $11) 20... Rd3 {[%emt 0:00:49]} (20... Bxe4 $1 $15 21. Bxe4 (21. Bh1 Bxh1 22. cxd4 Bf3 $17) 21... Rxe4) 21. Be2 {[%emt 0:01:21]} (21. Bg2 $14) 21... Bxe4 $1 $15 {[%emt 0:01:59]} 22. f3 {[%emt 0:00:03]} Bg6 {[%emt 0:00:00]} 23. Bxd3 {[%emt 0:00:01]} Bxd3 {[%emt 0:00:01]} 24. Rf2 {[%emt 0:00:01]} Bc2 {[%emt 0:00:03]} 25. Ra1 $1 {[%emt 0:00:57]} Bxb3 {[%emt 0:00:02]} 26. Ne3 {[%emt 0:00:30]} (26. Na5 $15 Bc2 27. Bf4 Bxf4 28. Rxc2) 26... Nd5 {[%emt 0:00:26]} (26... c4 $17 27. Ng2 a5) 27. Ng4 {[%emt 0:00:37]} (27. a5 $15) 27... c4 $17 {[%emt 0:00:18]} 28. Kg2 {[%emt 0:00:15]} (28. a5 $17 {war einen Versuch wert.}) 28... a6 {[%emt 0:00:37]} 29. Re2 {[%emt 0:00:12]} Qd7 {[%emt 0:00:46]} 30. a5 {[%emt 0:00:27]} Rd8 {[%emt 0:00:40]} 31. Nf2 {[%emt 0:00:28]} (31. Ne3 $17 {ist eine bessere Verteidigung.}) 31... Ba7 {[%emt 0:00:09]} 32. Ng4 {[%emt 0:00:05]} Bb8 {[%emt 0:00:47]} ({Besser ist} 32... h6 $17 33. Qc1 Bc5) 33. Bc1 $2 {[%emt 0:00:07]} (33. Nf2 $1 $11) 33... Ba7 $2 {[%emt 0:00:21]} (33... h6 $19 34. Ne3 Qb5 35. Nxd5 Rxd5 (35... Qxd5 36. Rd2 $11)) 34. Ne5 $2 {[%emt 0:00:47]} (34. Bd2 $1 $11 {und Weiss ist OK.}) 34... Qc7 {[%emt 0:00:04]} 35. Bd2 {[%emt 0:00:20]} Bc5 {[%emt 0:00:16]} 36. Ng4 {[%emt 0:00:33]} Qd7 {[%emt 0:00:03]} 37. Nf2 {[%emt 0:00:32]} Ba7 {[%emt 0:00:07]} ({Günstiger ist} 37... Qb5 $17 {Und jetzt ...Bd6 wäre schön.} 38. Ne4 Ba7) 38. Ne4 $2 {[%emt 0:00:15]} (38. Ng4 $1 $11) 38... Qc6 {[%emt 0:00:06]} 39. h4 {[%emt 0:00:22]} h6 {[%emt 0:00:06]} 40. Qc1 {[%emt 0:00:09]} f5 {[%emt 0:00:04]} 41. Nf2 {[%emt 0:00:02]} Qd7 {[%emt 0:00:09]} 42. Nh3 {[%emt 0:00:10]} Bb8 {[%emt 0:00:02]} 43. Bxh6 {[%emt 0:00:14]} gxh6 {[%emt 0:00:05]} 44. Qxh6 {[%emt 0:00:01]} Qg7 {[%emt 0:00:05]} (44... Nxc3 $17 45. Re3 Ba7 (45... Qd2+ $2 46. Kh1 $18) 46. Qg6+ Qg7 47. Qxe6+ (47. Qxg7+ $2 Kxg7 48. Rxc3 Bd4 $19) 47... Qf7 (47... Kh8 48. Rxc3 Rd2+ 49. Kh1 $11) 48. Qxf7+ Kxf7 49. Rxc3 Bd4 (49... Rd2+ 50. Kf1 $17)) 45. Qxe6+ $11 {[%emt 0:00:08]} Kh8 {[%emt 0:00:00]} 46. Ng5 $1 {[%emt 0:00:18]} f4 $2 {[%emt 0:00:05][%mdl 8192]} (46... Nxc3 $11 47. Nf7+ Kh7 48. Ng5+ Kh8) 47. Rae1 $2 {[%emt 0:00:25]} (47. Nf7+ Kh7 48. Nxd8 Ne3+ 49. Kh1 Qxc3 50. Rg1) 47... Ne3+ $18 {[%emt 0:00:15] [#]} (47... Nxc3 48. Nf7+) 48. Rxe3 $2 {[%emt 0:00:29]} (48. Kh1 $1 $18 Rf8 49. Rd2 (49. gxf4 Nf5 $11)) 48... fxe3 $11 {[%emt 0:00:01]} 49. Rxe3 {[%emt 0:00:02]} Rf8 {[%emt 0:00:08]} 50. Qg4 {[%emt 0:00:03]} Kg8 $2 {[%emt 0:00:07][%mdl 8192]} (50... Ba4 $11 {und Schwarz muss sich keine Sorgen machen.}) 51. Re6 {[%emt 0:00:16]} (51. Qe6+ Kh8 $14) 51... Bd1 {[%emt 0:00:01]} ({Lieber nicht} 51... Qxc3 52. Rg6+) 52. Qxc4 $2 {[%emt 0:00:06]} ({Der einzige Zug:} 52. Re4 $18) 52... Bxf3+ $11 {[%emt 0:00:03]} 53. Kh3 $1 {[%emt 0:00:07]} Qd7 {[%emt 0:00:08]} 54. Nxf3 {[%emt 0:00:11]} Rxf3 {[%emt 0:00:03]} 55. Qg4+ {[%emt 0:00:01]} Qg7 $2 {[%emt 0:00:11][%mdl 8192]} (55... Kf7 $11 56. Qg6+ (56. Qxf3+ Kxe6 57. Qe4+ Kf6+ 58. g4 Qe6 $19) (56. Rf6+ Kxf6 57. Qxd7 Rxg3+ 58. Kh2 Rg7+ 59. Kh3 Rxd7 60. Kg2 Ke5 61. Kf3 Rd3+ 62. Kf2 Ke4 63. Ke2 Bf4 64. Kf2 Rd2+ 65. Kf1 Bg3 66. c4 Kf3 67. h5 Rd1#) 56... Kf8 57. Qh6+ Kg8 58. Qg5+ (58. Qg6+ $2 Qg7 $19) 58... Kf8 59. Qh6+ Kf7 60. Qg6+ Kf8 61. Qh6+) 56. Qxf3 {[%emt 0:00:02]} Qd7 {[%emt 0:00:11]} 1-0

[Event "Polish University-ch Teams 2024"]
[Site "Lublin"]
[Date "2024.02.25"]
[Round "9.15"]
[White "Pultorak, Jan"]
[Black "Hasterok, Mateusz"]
[Result "1-0"]
[ECO "A01"]
[WhiteElo "2303"]
[BlackElo "2150"]
[Annotator "TA"]
[PlyCount "65"]
[EventDate "2024.02.22"]
[EventType "team-tourn"]
[EventCountry "POL"]
[SourceTitle "playchess.com"]
[Source "ChessBase"]
[SourceQuality "1"]
[TimeControl "900+5"]

{[%evp 9,65,26,56,57,45,32,42,41,48,29,39,34,33,40,48,36,53,33,26,0,33,17,19,17,84,98,103,80,83,59,62,56,118,123,100,79,199,97,234,116,120,130,253,247,248,92,181,179,180,169,322,310,1035,1052,1051,1042,3175,2267]} 1. b3 {[%emt 0:00:02]} e5 {[%emt 0:00:01]} 2. Bb2 {[%emt 0:00:01]} Nc6 {[%emt 0:00:01]} 3. e3 {[%emt 0:00:02]} a6 {[%emt 0:00:01]} 4. Nf3 {[%emt 0:00:04]} Qe7 {[%emt 0:00:03]} 5. d4 {[%emt 0:00:03]} exd4 {[%emt 0:00:01]} 6. Nxd4 {[%emt 0:00:01]} Nf6 {[%emt 0:00:06]} 7. Be2 {[%emt 0:00:10]} g6 {[%emt 0:00:24]} 8. O-O {[%emt 0:00:23] White is slightly better.} Bg7 {[%emt 0:00:01]} 9. c4 {[%emt 0:00:08]} d6 {[%emt 0:00:29]} 10. Nxc6 {[%emt 0:00:08]} bxc6 {[%emt 0:00:02]} 11. Bf3 {[%emt 0:00:02]} Bd7 {[%emt 0:00:05]} 12. Nc3 {[%emt 0:00:07][%cal Oc4c5]} O-O {[%emt 0:00:15]} 13. Qe2 {[%emt 0:00:33]} Rfe8 {[%emt 0:00:21]} 14. Rfd1 {[%emt 0:00:10]} Rab8 {[%emt 0:00:12]} 15. Rac1 {[%emt 0:01:05]} h5 {[%emt 0:01:07]} 16. c5 {[%emt 0:00:11]} a5 {[%emt 0:00:10] [#]} (16... d5 $11) 17. cxd6 $1 $16 {[%emt 0:00:13]} cxd6 {[%emt 0:00:01]} 18. Ba3 {[%emt 0:00:12]} c5 {[%emt 0:00:40][%cal Oa5a4]} 19. Qd3 {[%emt 0:00:15]} Rb6 {[%emt 0:00:30]} 20. h3 {[%emt 0:02:11]} Bc8 {[%emt 0:02:57] [#]} (20... Reb8 $14) 21. Na4 $1 {[%emt 0:00:29]} Ra6 {[%emt 0:00:14]} 22. Qb5 {[%emt 0:00:43]} Qd7 {[%emt 0:03:30]} (22... Ne4 $16 {was necessary.}) 23. Be2 {[%emt 0:00:37]} (23. Rxc5 $18 {has better winning chances. And now Bc6 would win.} Qxb5 24. Rxb5) 23... Ra7 {[%emt 0:01:07]} (23... Qe7 $16) 24. Nb6 {[%emt 0:01:56]} (24. Qb6 $18 {and White stays clearly on top.}) 24... Qe7 {[%emt 0:01:08] Strongly threatening ...Ba6.} 25. Qc6 $36 {[%emt 0:00:47][%csl LRc8,LRd6][%mdl 2048] Black is under strong pressure. White has more active pieces.} Ba6 {[%emt 0:00:38]} (25... Be6 $16) 26. Bxa6 $18 {[%emt 0:01:23]} Rxa6 {[%emt 0:00:00]} 27. Qxd6 $2 {[%emt 0:00:04]} (27. Rxd6 $18 Rb8 28. Qxc5 (28. Bxc5 Ne4 $18) (28. Nc8 Qxd6 29. Qxd6 Rxd6 $18)) 27... Qb7 {[%emt 0:01:06]} (27... Qxd6 $16 28. Rxd6 Ne4) 28. Bxc5 {[%emt 0:00:31]} Ne4 {[%emt 0:00:01]} 29. Qd7 {[%emt 0:00:01]} Qb8 {[%emt 0:01:04]} (29... Qxd7 30. Nxd7 Nc3) 30. Nd5 {[%emt 0:00:33] Nc7 would now be deadly.} Rd8 $2 {[%emt 0:00:26]} (30... Nf6 31. Nxf6+ Bxf6) 31. Ne7+ {[%emt 0:00:03] White is clearly winning.} Kh7 {[%emt 0:00:09]} 32. Qxd8 {[%emt 0:00:02]} Qe5 {[%emt 0:00:06]} 33. Bd4 {[%emt 0:00:12] Weighted Error Value: White=0.27 (precise) /Black=0.46.  Mistake:       	White=3     	Black=8      Inaccurate:     	White=1     	Black=1      OK:         	White=6     	Black=10     Best:        	White=3     	Black=2      Strong:       	White=1     	---} 1-0

[Event "Polish University-ch Teams 2024"]
[Site "Lublin"]
[Date "2024.02.25"]
[Round "9.17"]
[White "Adamczewski, Jedrzej"]
[Black "Adamczyk, Zuzanna"]
[Result "1/2-1/2"]
[ECO "B15"]
[WhiteElo "1917"]
[BlackElo "1970"]
[Annotator "NA"]
[PlyCount "99"]
[EventDate "2024.02.22"]
[EventType "team-tourn"]
[EventCountry "POL"]
[SourceTitle "playchess.com"]
[Source "ChessBase"]
[SourceQuality "1"]
[TimeControl "900+5"]

1. e4 {[%emt 0:00:01]} c6 {[%emt 0:00:02]} 2. Nc3 {[%emt 0:00:11]} d5 {[%emt 0:00:07]} 3. Nf3 {[%emt 0:00:02]} dxe4 {[%emt 0:00:13]} 4. Nxe4 {[%emt 0:00:02]} Be6 {[%emt 0:00:11]} 5. d4 {[%emt 0:03:42]} Nf6 {[%emt 0:03:40]} 6. Nxf6+ {[%emt 0:00:08]} exf6 {[%emt 0:00:03]} 7. Be2 {[%emt 0:01:09]} Bd6 {[%emt 0:00:23]} 8. O-O {[%emt 0:00:03]} O-O {[%emt 0:00:03]} 9. c3 {[%emt 0:00:15]} Bc7 {[%emt 0:00:32]} 10. Ne1 {[%emt 0:00:59]} Qd6 {[%emt 0:02:11]} 11. g3 {[%emt 0:00:05]} Qd7 {[%emt 0:00:59]} 12. Nd3 {[%emt 0:00:24]} Na6 {[%emt 0:01:16]} 13. Re1 {[%emt 0:00:54]} Rfe8 {[%emt 0:00:19]} 14. Bf4 {[%emt 0:00:30]} Bf5 {[%emt 0:01:30]} 15. Qd2 {[%emt 0:01:21]} Rad8 {[%emt 0:01:15]} 16. Bxc7 {[%emt 0:00:40]} Nxc7 {[%emt 0:00:17]} 17. Nc5 {[%emt 0:01:38]} Qc8 {[%emt 0:00:04]} 18. Bd3 {[%emt 0:00:29]} Bg6 {[%emt 0:00:52]} 19. Rxe8+ {[%emt 0:00:09]} Rxe8 {[%emt 0:00:12]} 20. Re1 {[%emt 0:00:06]} b6 {[%emt 0:00:05]} 21. Bxg6 {[%emt 0:00:10]} hxg6 {[%emt 0:00:39]} 22. Rxe8+ {[%emt 0:00:53]} Nxe8 {[%emt 0:00:16]} 23. Nd3 {[%emt 0:00:04]} Nd6 {[%emt 0:00:11]} 24. b3 {[%emt 0:00:12]} g5 {[%emt 0:00:21]} 25. c4 {[%emt 0:00:11]} Ne4 {[%emt 0:00:19]} 26. Qe3 {[%emt 0:00:15]} Qe6 {[%emt 0:00:05]} 27. Nb4 {[%emt 0:00:16]} f5 {[%emt 0:00:43]} 28. f3 {[%emt 0:00:26]} c5 {[%emt 0:00:07]} 29. Nd5 {[%emt 0:01:04]} cxd4 {[%emt 0:00:07]} 30. Qxd4 {[%emt 0:00:02]} Nd6 {[%emt 0:00:08]} 31. Kf2 {[%emt 0:00:14]} g4 {[%emt 0:00:07]} 32. f4 {[%emt 0:00:17]} Ne4+ {[%emt 0:00:04]} 33. Kg2 {[%emt 0:00:02]} Nc5 {[%emt 0:00:08]} 34. Qe5 {[%emt 0:00:14]} Qxe5 {[%emt 0:00:02]} 35. fxe5 {[%emt 0:00:01]} Nd3 {[%emt 0:00:02]} 36. Ne7+ {[%emt 0:00:02]} Kf8 {[%emt 0:00:02]} 37. Nxf5 {[%emt 0:00:02]} Nxe5 {[%emt 0:00:02]} 38. Nd6 {[%emt 0:00:08]} Nc6 {[%emt 0:00:09]} 39. Kf2 {[%emt 0:00:17]} Ke7 {[%emt 0:00:10]} 40. Nf5+ {[%emt 0:00:08]} Kf6 {[%emt 0:00:03]} 41. Ne3 {[%emt 0:00:00]} Kg5 {[%emt 0:00:06]} 42. Nd5 {[%emt 0:00:03]} f5 {[%emt 0:00:04]} 43. a3 {[%emt 0:00:06]} Kg6 {[%emt 0:00:03]} 44. b4 {[%emt 0:00:09]} Kf7 {[%emt 0:00:06]} 45. Ke3 {[%emt 0:00:14]} g5 {[%emt 0:00:02]} 46. Nc7 {[%emt 0:00:06]} Ke7 {[%emt 0:00:06]} 47. Nb5 {[%emt 0:00:02]} Ke6 {[%emt 0:00:07]} 48. Nc7+ {[%emt 0:00:14]} Ke7 {[%emt 0:00:02]} 49. Nd5+ {[%emt 0:00:04]} Ke6 {[%emt 0:00:04]} 50. Nc7+ {[%emt 0:00:10]} 1/2-1/2

[Event "Polish University-ch Teams 2024"]
[Site "Lublin"]
[Date "2024.02.25"]
[Round "9.18"]
[White "Orlik, Sandra"]
[Black "Wojtas, Julia"]
[Result "1-0"]
[ECO "E92"]
[WhiteElo "1836"]
[BlackElo "1346"]
[Annotator "NA"]
[PlyCount "73"]
[EventDate "2024.02.22"]
[EventType "team-tourn"]
[EventCountry "POL"]
[SourceTitle "playchess.com"]
[Source "ChessBase"]
[SourceQuality "1"]
[TimeControl "900+5"]

1. d4 {[%emt 0:00:03]} Nf6 {[%emt 0:00:04]} 2. Nf3 {[%emt 0:00:02]} g6 {[%emt 0:00:04]} 3. c4 {[%emt 0:00:09]} Bg7 {[%emt 0:00:02]} 4. Nc3 {[%emt 0:00:02]} d6 {[%emt 0:00:02]} 5. e4 {[%emt 0:00:08]} O-O {[%emt 0:00:04]} 6. Be2 {[%emt 0:00:11]} Nc6 {[%emt 0:00:09]} 7. h3 {[%emt 0:00:04]} e5 {[%emt 0:00:03]} 8. d5 {[%emt 0:00:22]} Ne7 {[%emt 0:00:02]} 9. Be3 {[%emt 0:00:37]} Nd7 {[%emt 0:00:10]} 10. g4 {[%emt 0:00:04]} f5 {[%emt 0:01:24]} 11. gxf5 {[%emt 0:00:02]} gxf5 {[%emt 0:00:05]} 12. exf5 {[%emt 0:01:12]} Nxf5 {[%emt 0:00:15]} 13. Qd2 {[%emt 0:00:14]} Nxe3 {[%emt 0:01:26]} 14. Qxe3 {[%emt 0:00:02]} c6 {[%emt 0:00:56]} 15. Rg1 {[%emt 0:01:14]} Kh8 {[%emt 0:00:29]} 16. O-O-O {[%emt 0:01:36]} Nf6 {[%emt 0:01:28]} 17. dxc6 {[%emt 0:02:29]} bxc6 {[%emt 0:01:43]} 18. Nxe5 {[%emt 0:00:37]} Qc7 {[%emt 0:00:23]} 19. Ng4 {[%emt 0:00:30]} Rb8 {[%emt 0:02:11]} 20. Nxf6 {[%emt 0:00:51]} Bxf6 {[%emt 0:00:44]} 21. Bg4 {[%emt 0:01:41]} Qb7 {[%emt 0:01:42]} 22. Rd2 {[%emt 0:00:27]} d5 {[%emt 0:01:29]} 23. Bxc8 {[%emt 0:01:21]} Rfxc8 {[%emt 0:00:21]} 24. Nd1 {[%emt 0:02:31]} Re8 {[%emt 0:01:17]} 25. Qc5 {[%emt 0:00:16]} Qa6 {[%emt 0:00:22]} 26. a3 {[%emt 0:00:10]} dxc4 {[%emt 0:00:20]} 27. Rd6 {[%emt 0:00:10]} Bg7 {[%emt 0:00:00]} 28. Rd7 {[%emt 0:00:02]} Be5 {[%emt 0:00:01]} 29. Re7 {[%emt 0:00:07]} Rxe7 {[%emt 0:00:02]} 30. Qxe7 {[%emt 0:00:02]} Qb5 {[%emt 0:00:17]} 31. Qg5 {[%emt 0:00:13]} Re8 {[%emt 0:00:00]} 32. Qd2 {[%emt 0:00:04]} c3 {[%emt 0:00:00]} 33. Nxc3 {[%emt 0:00:02]} Qc4 {[%emt 0:00:00]} 34. Kc2 {[%emt 0:00:05]} Bf4 {[%emt 0:00:01]} 35. Qd7 {[%emt 0:00:05]} Re2+ {[%emt 0:00:03]} 36. Kb1 {[%emt 0:00:02]} Qb3 {[%emt 0:00:19]} 37. Qd8+ {[%emt 0:00:02]} 1-0

[Event "Polish University-ch Teams 2024"]
[Site "Lublin"]
[Date "2024.02.25"]
[Round "9.19"]
[White "Snihur, Piotr"]
[Black "Pacan-Milej, Kosma"]
[Result "0-1"]
[ECO "E62"]
[WhiteElo "2278"]
[BlackElo "2438"]
[Annotator "TA"]
[PlyCount "70"]
[EventDate "2024.02.22"]
[EventType "team-tourn"]
[EventCountry "POL"]
[SourceTitle "playchess.com"]
[Source "ChessBase"]
[SourceQuality "1"]
[TimeControl "900+5"]

{[%evp 15,70,51,44,43,50,0,0,0,16,22,33,-43,-37,-37,-38,-48,-17,-142,-140,-154,-159,-143,-85,-87,-87,-91,-114,-108,-108,-138,-135,-158,-165,-208,-196,-285,-275,-423,-405,-446,-445,-442,-419,-672,-668,-651,-669,-948,-933,-898,-579,-612,-644,-666,-627,-634,-616]} 1. Nf3 {[%emt 0:00:03]} Nf6 {[%emt 0:00:01]} 2. g3 {[%emt 0:00:06]} g6 {[%emt 0:00:01]} 3. Bg2 {[%emt 0:00:01]} Bg7 {[%emt 0:00:02]} 4. O-O {[%emt 0:00:02]} O-O {[%emt 0:00:02]} 5. c4 {[%emt 0:00:06]} d6 {[%emt 0:00:02]} 6. Nc3 {[%emt 0:00:04]} e5 {[%emt 0:00:02]} 7. d4 {[%emt 0:00:07]} Nc6 {[%emt 0:00:03]} 8. d5 {[%emt 0:01:03]} Nb8 {[%emt 0:00:03]} 9. b3 {[%emt 0:00:34]} a5 {[%emt 0:00:05]} 10. Bb2 {[%emt 0:00:03]} ({White should play} 10. e4 $14) 10... Na6 {[%emt 0:00:01]} 11. a3 {[%emt 0:00:07] The position is equal.} Nd7 {[%emt 0:00:29][%cal Bf6d7,Bd7e5,Be5d3][%mdl 32] [#]} 12. b4 $1 {[%emt 0:00:32]} f5 {[%emt 0:00:02]} (12... Nb6 13. Qb3) 13. e3 {[%emt 0:01:23]} ({White should try} 13. e4 $14) 13... e4 $15 {[%emt 0:00:49]} 14. Nd4 {[%emt 0:00:06]} Ne5 {[%emt 0:00:01]} 15. Qb3 {[%emt 0:00:57]} Nd3 {[%emt 0:00:29]} 16. b5 {[%emt 0:01:28]} (16. Nce2 $11) 16... Nac5 $17 {[%emt 0:00:11] Black is more active.} 17. Qc2 {[%emt 0:00:01]} Nxb2 {[%emt 0:00:29]} 18. Qxb2 {[%emt 0:00:01] [#]} b6 {[%emt 0:00:11]} (18... f4 $142 $1 {White must now prevent ...f3.} 19. gxf4 Bxd4 20. exd4 Nd3) 19. Rad1 {[%emt 0:00:09]} Qf6 {[%emt 0:00:10]} 20. Qc2 {[%emt 0:00:09]} Bd7 {[%emt 0:00:09]} 21. Nce2 {[%emt 0:00:20]} g5 {[%emt 0:00:36] Wards off Nf4} 22. Rd2 {[%emt 0:00:07]} Rae8 {[%emt 0:00:06]} 23. Kh1 {[%emt 0:01:28]} h5 {[%emt 0:00:02]} 24. Qd1 {[%emt 0:00:32]} Qh6 {[%emt 0:00:06]} 25. h3 {[%emt 0:00:47]} (25. Rg1 {was necessary.}) 25... h4 $19 {[%emt 0:00:12]} 26. Ng1 {[%emt 0:00:11]} (26. Nc6 $142) 26... g4 {[%emt 0:03:04]} 27. Nde2 {[%emt 0:00:34]} hxg3 {[%emt 0:00:17]} 28. fxg3 {[%emt 0:00:07]} Qxe3 {[%emt 0:00:11]} 29. Nf4 {[%emt 0:00:02]} (29. Ra2 $142) 29... Qxg3 {[%emt 0:00:40] Black is clearly winning.} 30. Nge2 {[%emt 0:00:01]} Qe3 {[%emt 0:00:31]} 31. Ng6 {[%emt 0:00:21]} Rf6 {[%emt 0:04:53]} 32. Nef4 {[%emt 0:00:01]} Nd3 {[%emt 0:00:02][%cal Of6g6] ...Rxg6! is the strong threat.} 33. Qe2 {[%emt 0:01:06]} Qxe2 {[%emt 0:00:11]} 34. Rxe2 {[%emt 0:00:01]} Nxf4 {[%emt 0:03:42]} 35. Nxf4 {[%emt 0:00:02]} Rh6 {[%emt 0:00:00] Weighted Error Value: White=0.62/Black=0.24 (precise) .  Mistake:       	White=6     	Black=1      Inaccurate:     	---       	Black=1      OK:         	White=7     	Black=10     Best:        	---       	Black=3} 0-1

[Event "Polish University-ch Teams 2024"]
[Site "Lublin"]
[Date "2024.02.25"]
[Round "9.20"]
[White "Redzisz, Michal"]
[Black "Sliwicka, Alicja"]
[Result "1/2-1/2"]
[ECO "A57"]
[WhiteElo "2229"]
[BlackElo "2309"]
[Annotator "TA"]
[PlyCount "73"]
[EventDate "2024.02.22"]
[EventType "team-tourn"]
[EventCountry "POL"]
[SourceTitle "playchess.com"]
[Source "ChessBase"]
[SourceQuality "1"]
[TimeControl "900+5"]

{[%evp 10,73,29,34,69,54,55,43,59,70,61,18,0,1,30,15,28,0,0,0,0,0,0,-15,0,0,51,48,49,58,77,97,99,59,101,97,81,44,45,7,8,0,70,8,14,14,23,21,135,135,132,85,115,112,122,122,120,77,130,110,90,0,122,91,97,0]} 1. d4 {[%emt 0:00:01][%cal Bd2d4,Bd4d5][%mdl 32]} Nf6 {[%emt 0:00:01]} 2. c4 {[%emt 0:00:01]} c5 {[%emt 0:00:02]} 3. d5 {[%emt 0:00:01]} b5 {[%emt 0:00:00]} 4. cxb5 {[%emt 0:00:09]} a6 {[%emt 0:00:01]} 5. e3 {[%emt 0:00:01]} e6 {[%emt 0:00:05]} 6. Nc3 {[%emt 0:02:29]} axb5 {[%emt 0:00:01]} 7. dxe6 {[%emt 0:00:45]} fxe6 {[%emt 0:00:03]} 8. Bxb5 {[%emt 0:00:05]} Be7 {[%emt 0:00:32] White is slightly better.} 9. Nf3 {[%emt 0:00:03]} O-O {[%emt 0:00:02]} 10. e4 {[%emt 0:01:07]} Bb7 {[%emt 0:00:31]} 11. Bd3 {[%emt 0:00:45]} Nc6 {[%emt 0:00:28]} 12. O-O {[%emt 0:02:07]} Nd4 {[%emt 0:01:50]} 13. Nxd4 {[%emt 0:01:28]} cxd4 {[%emt 0:00:01]} 14. e5 {[%emt 0:00:02]} dxc3 {[%emt 0:00:54]} 15. exf6 {[%emt 0:00:02]} Bxf6 {[%emt 0:00:02]} 16. bxc3 {[%emt 0:00:14]} Qa5 {[%emt 0:00:10][%cal Oa5d5]} 17. Be3 {[%emt 0:01:18][%cal Od3h7]} Rac8 {[%emt 0:02:04] [#]} (17... Bc6 $11) 18. Bxh7+ $1 $14 {[%emt 0:01:22]} Kxh7 {[%emt 0:00:46]} 19. Qb1+ $1 {[%emt 0:00:01]} (19. Qxd7 $2 {perishes.} Bd5 20. Rac1 Qxa2 $19 (20... Bxa2 $2 21. Bd4 $19)) 19... Qf5 {[%emt 0:00:31]} 20. Qxb7 {[%emt 0:00:03]} Rxc3 {[%emt 0:00:55]} 21. Rac1 {[%emt 0:01:09] Rxc3 is the strong threat.} (21. Qxd7 Rd3 22. Qa4 Bxa1 23. Rxa1 Qd5 $17) 21... Rxc1 {[%emt 0:00:03]} 22. Rxc1 {[%emt 0:00:08]} d5 {[%emt 0:00:27]} 23. Qb4 {[%emt 0:01:01] Prevents d4.} Bg5 $1 {[%emt 0:00:46] And now ...Bxe3 would win.} 24. Qd2 {[%emt 0:01:38]} Bf6 {[%emt 0:00:31][%cal Od5d4]} 25. Qb4 {[%emt 0:00:29]} (25. Qe2 $11) 25... Bg5 $1 {[%emt 0:00:05] Strongly threatening ...Bxe3.} 26. Qb1 {[%emt 0:00:09] White is more active.} (26. Qe1 $14) 26... Qxb1 $11 {[%emt 0:00:08]} 27. Rxb1 {[%emt 0:00:00]} Bxe3 {[%emt 0:00:02]} 28. fxe3 {[%emt 0:00:01][%mdl 4096] Endgame. KR-KR} Kg6 {[%emt 0:00:01]} (28... Ra8 $11 {remains equal.}) 29. a4 $16 {[%emt 0:00:13]} Ra8 {[%emt 0:00:06] [#]} 30. Rb4 {[%emt 0:00:26]} (30. Ra1 $142 $1) 30... Kf5 {[%emt 0:00:18]} 31. Kf2 {[%emt 0:00:01]} g5 {[%emt 0:00:24]} 32. h3 {[%emt 0:00:03]} Ke5 {[%emt 0:00:14]} 33. Kf3 {[%emt 0:00:02]} Kf5 {[%emt 0:00:02]} (33... Kd6 $142) 34. Kg3 {[%emt 0:00:06]} Ra7 {[%emt 0:00:07]} 35. Kf3 {[%emt 0:00:07]} Ra8 $1 {[%emt 0:00:02]} 36. Ke2 {[%emt 0:00:02]} Ke5 {[%emt 0:00:15]} 37. Kf3 {[%emt 0:00:01] Weighted Error Value: White=0.16 (very precise) /Black=0.16 (very precise) .  Mistake:       	White=4     	Black=3      Inaccurate:     	White=5     	Black=3      OK:         	White=10    	Black=7      Best:        	White=2     	Black=3      Strong:       	White=1     	Black=3      Brilliant:      	White=1     	---} ({White should try} 37. Kd2 $16) 1/2-1/2